fUSD/lending_fUSD_20240826
["ID","MTS","AMOUNT","RATE_DAILY","PERIOD"]
[336055600,1724682647946,-2888.96,0.00010986,2]
[336055602,1724682647955,-614.52,0.00010986,2]
[336055604,1724682647964,-4343.7,0.00010986,2]
[336055606,1724682647974,-1292.27,0.00010986,2]
[336055608,1724682647983,-628.38,0.00010986,2]
[336055610,1724682647992,-500.0,0.00010986,2]
[336055612,1724682648002,-500.0,0.00010986,2]
[336055614,1724682648012,-1837.09,0.00010986,2]
[336055616,1724682648021,-500.0,0.00010986,2]
[336055618,1724682648030,-542.71,0.00010986,2]
[336055620,1724682648040,-3129.77,0.00010986,2]
[336055622,1724682648050,-1399.67,0.00010986,2]
[336055624,1724682648060,-557.84,0.00010986,2]
[336055626,1724682648070,-1887.38,0.00010986,2]
[336055628,1724682648082,-1360.1,0.00010986,2]
[336055630,1724682648092,-500.0,0.00010986,2]
[336055632,1724682648102,-500.0,0.00010986,2]
[336055634,1724682648113,-3115.03994957,0.00010986,2]
[336055640,1724682648164,-383.87296915,0.00010986,2]
[336055642,1724682648177,-774.63708128,0.00010986,2]
[336055644,1724682648188,-1619.07,0.00010986,2]
[336055646,1724682648198,-1914.91,0.00010986,2]
[336055648,1724682648208,-500.0,0.00010986,2]
[336055650,1724682648218,-2074.30380768,0.00010986,2]
[336055653,1724682648240,-1213.76619232,0.00010986,2]
[336055655,1724682648250,-1230.49,0.00010986,2]
[336055657,1724682648260,-531.65,0.00010986,2]
[336055659,1724682648269,-439.94903067,0.00010986,2]
[336055662,1724682648281,-1110.19096933,0.00010986,2]
[336055664,1724682648290,-348.6487135,0.00010986,2]
[336055666,1724682648302,-409.14193754,0.00010986,2]
[336055668,1724682648315,-349.46606398,0.00010986,2]
[336055670,1724682648327,-1529.65936875,0.00010986,2]
[336055673,1724682648343,-566.35391623,0.00010986,2]
[336055675,1724682648354,-1989.16,0.00010986,2]
[336055677,1724682648364,-1764.51,0.00010986,2]
[336055679,1724682648374,-346.25440205,0.00010986,2]
[336055681,1724682648386,-9.92559795,0.00010986,2]
[336055683,1724682648396,-643.18,0.00010986,2]
[336055685,1724682648406,-542.4652084,0.00010986,2]
[336055688,1724682648418,-769.05650803,0.00010986,2]
[336055690,1724682648430,-101.59828357,0.00010986,2]
[336055692,1724682648439,-582.76871628,0.00010986,2]
[336055694,1724682648451,-681.9156549,0.00010986,2]
[336055697,1724682648468,-412.11562882,0.00010986,2]
[336055699,1724682648477,-1455.21,0.00010986,2]
[336055701,1724682648487,-627.21281943,0.00010986,2]
[336055703,1724682648496,-364.02442512,0.00010986,2]
[336055705,1724682648508,-594.96858718,0.00010986,2]
[336055707,1724682648520,-500.0,0.00010986,2]
[336055709,1724682648535,-201.6469877,0.00010986,2]
[336055711,1724682648545,-500.0,0.00010986,2]
[336055714,1724682648555,-2215.08,0.00010986,2]
[336055716,1724682648565,-1380.87,0.00010986,2]
[336055718,1724682648575,-500.0,0.00010986,2]
[336055720,1724682648592,-879.87,0.00010986,2]
[336055722,1724682648608,-972.01848906,0.00010986,2]
[336055724,1724682648620,-531.0,0.00010986,2]
[336055727,1724682648637,-427.49151094,0.00010986,2]
[336055729,1724682648646,-250.50848853,0.00010986,2]
[336055731,1724682648658,-451.34,0.00010986,2]
[336055733,1724682648669,-783.81151147,0.00010986,2]
[336055735,1724682648680,-563.12,0.00010986,2]
[336055737,1724682648690,-500.0,0.00010986,2]
[336055739,1724682648700,-505.67,0.00010986,2]
[336055741,1724682648710,-127.36933465,0.00010986,2]
[336055743,1724682648722,-942.77066535,0.00010986,2]
[336055745,1724682648732,-1538.69,0.00010986,2]
[336055747,1724682648741,-2306.92901194,0.00010986,2]
[336055750,1724682648753,-1033.05017563,0.00010986,2]
[336055752,1724682648769,-295.25514135,0.00010986,2]
[336055755,1724682648790,-616.91567108,0.00010986,2]
[336055757,1724682648799,-500.0,0.00010986,2]
[336055759,1724682648809,-1084.98,0.00010986,2]
[336055761,1724682648818,-500.0,0.00010986,2]
[336055763,1724682648828,-1372.09,0.00010986,2]
[336055764,1724682648841,-500.0,0.00010986,2]
[336055766,1724682648851,-500.0,0.00010986,2]
[336055769,1724682648863,-1098.83217455,0.00010986,2]
[336055771,1724682648875,-617.45782545,0.00010986,2]
[336055773,1724682648884,-500.0,0.00010986,2]
[336055775,1724682648894,-500.0,0.00010986,2]
[336055777,1724682648905,-2014.31,0.00010986,2]
[336055779,1724682648914,-886.91,0.00010986,2]
[336055781,1724682648924,-1529.97217536,0.00010986,2]
[336055783,1724682648942,-337.37782464,0.00010986,2]
[336055785,1724682648952,-42.33225908,0.00010986,2]
[336055788,1724682648965,-457.66774092,0.00010986,2]
[336055790,1724682648974,-543.28538058,0.00010986,2]
[336055792,1724682648987,-970.74448452,0.00010986,2]
[336055794,1724682648998,-25.4801349,0.00010986,2]
[336055796,1724682649007,-500.0,0.00010986,2]
[336055798,1724682649016,-500.0,0.00010986,2]
[336055800,1724682649025,-635.1,0.00010986,2]
[336055802,1724682649034,-500.0,0.00010986,2]
[336055804,1724682649044,-867.57,0.00010986,2]
[336055806,1724682649053,-1107.25,0.00010986,2]
[336055808,1724682649062,-519.48,0.00010986,2]
[336055809,1724682649071,-611.98,0.00010986,2]
[336055811,1724682649081,-1295.32,0.00010986,2]
[336055813,1724682649091,-501.27890669,0.00010986,2]
[336055815,1724682649101,-952.9,0.00010986,2]
[336055817,1724682649110,-1427.85,0.00010986,2]
[336055819,1724682649121,-1512.04652845,0.00010986,2]
[336055821,1724682649133,-426.82347155,0.00010986,2]
[336055823,1724682649143,-500.0,0.00010986,2]
[336055825,1724682649153,-214.77652845,0.00010986,2]
[336055828,1724682649170,-500.0,0.00010985,2]
[336055830,1724682649181,-1744.88347155,0.00010986,2]
[336055832,1724682649191,-500.0,0.00010986,2]
[336055834,1724682649200,-291.06752575,0.00010986,2]
[336055837,1724682649216,-208.93247425,0.00010986,2]
[336055857,1724682649405,-500.0,0.00010986,2]
[336055859,1724682649426,-808.82,0.00010986,2]
[336055861,1724682649436,-500.0,0.00010986,2]
[336055863,1724682649446,-230.20492575,0.00010986,2]
[336055866,1724682649458,-269.79507425,0.00010986,2]
[336055868,1724682649467,-636.58,0.00010986,2]
[336055870,1724682649477,-500.0,0.00010986,2]
[336055871,1724682649486,-1656.26,0.00010986,2]
[336055873,1724682649495,-15.00675213,0.00010986,2]
[336057449,1724682699406,500.0,9.164e-05,2]
[336057451,1724682726108,3016.98,9.993e-05,2]
[336057458,1724682761295,1000.0,9.997e-05,2]
[336057460,1724682797410,197.65,9.991e-05,2]
[336057461,1724682822220,170.43,9.988e-05,2]
[336057462,1724682937765,151.12,9.98e-05,2]
[336057463,1724682999206,462.89,8.219e-05,2]
[336057464,1724683306220,200.0,9.925e-05,2]
[336057465,1724683425520,151.12,9.921e-05,2]
[336057468,1724683630076,1050.0,0.0001,2]
[336057469,1724683639406,155.0,9.999e-05,2]
[336057490,1724683679483,460.12,8.219e-05,2]
[336057520,1724683751915,210.68796629,9.999e-05,2]
[336057522,1724683757696,1365.33813785,0.0001,2]
[336057528,1724683787325,1297.9617252,9.962e-05,2]
[336057540,1724683817942,955.84194083,9.999e-05,2]
[336057541,1724683819061,840.0,9.918e-05,2]
[336057542,1724683828255,711.82892756,9.999e-05,2]
[336057577,1724683831886,-155.0,0.00010026,2]
[336057579,1724683831895,-305.05224028,0.00010026,2]
[336057581,1724683831904,-206.02448722,0.00010026,2]
[336057583,1724683831914,-155.5662178,0.00010097,2]
[336057585,1724683831923,-126.3570547,0.00010097,2]
[336057592,1724683832000,-293.02962661,0.00010097,2]
[336057593,1724683832009,-330.5830106,0.00010097,2]
[336057594,1724683832019,-159.12,0.00010415,2]
[336057595,1724683832029,-460.12,0.00010472,2]
[336057596,1724683832039,-298.66525992,0.00010566,2]
[336057597,1724683832049,-459.6124,0.00010655,2]
[336057598,1724683832059,-499.99,0.00010699,2]
[336057599,1724683832068,-461.1654,0.00010785,2]
[336057600,1724683832077,-587.42,0.00010785,2]
[336057601,1724683832087,-16486.56,0.00010785,2]
[336057602,1724683832096,-155.94399844,0.000108,2]
[336057603,1724683832106,-401.92563255,0.000108,2]
[336057604,1724683832116,-257.5463,0.00010837,2]
[336057605,1724683832125,-150.0,0.00010879,2]
[336057606,1724683832135,-179.99,0.0001088,2]
[336057607,1724683832149,-3000.0,0.0001088,2]
[336057608,1724683832159,-352.0792,0.00010885,2]
[336057609,1724683832169,-2139.003,0.00010885,2]
[336057610,1724683832179,-37685.0998,0.00010885,2]
[336057611,1724683832190,-468.1942,0.00010885,2]
[336057612,1724683832201,-1451.1123,0.00010885,2]
[336057613,1724683832212,-23386.5069,0.00010885,2]
[336057614,1724683832225,-343.1771,0.00010885,2]
[336057615,1724683832235,-304.56425799,0.00010885,2]
[336057616,1724683832245,-229.55880013,0.0001089,2]
[336057617,1724683832254,-4915.17659537,0.0001089,2]
[336057618,1724683832264,-4915.17659535,0.00010895,2]
[336057619,1724683832275,-1194.04088155,0.00010899,3]
[336057620,1724683832285,-4929.51300205,0.00010899,2]
[336057621,1724683832295,-4929.51300202,0.00010899,2]
[336057622,1724683832304,-4929.51300202,0.00010899,2]
[336057623,1724683832314,-4929.51300202,0.00010899,2]
[336057624,1724683832324,-4929.51300202,0.00010899,2]
[336057625,1724683832334,-4929.51300202,0.00010899,2]
[336057626,1724683832343,-4929.51300202,0.00010899,2]
[336057627,1724683832352,-4929.51300202,0.00010899,2]
[336057628,1724683832361,-4929.51300202,0.00010899,2]
[336057629,1724683832370,-4915.17659535,0.000109,2]
[336057630,1724683832380,-4929.51300202,0.000109,2]
[336057633,1724683832626,-3824.71,0.00010901,2]
[336057634,1724683832636,-3700.39,0.00010937,2]
[336057635,1724683832647,-508.0941,0.00010938,2]
[336057637,1724683832656,-1350.20522667,0.00010949,2]
[336057638,1724683832666,-268.19069834,0.00010949,2]
[336057639,1724683832675,-200.0,0.00010959,2]
[336057640,1724683832685,-163.13,0.00010959,2]
[336057641,1724683832695,-1000.0,0.00010959,2]
[336057642,1724683832704,-1000.0,0.00010959,2]
[336057643,1724683832713,-1002.11796572,0.00010959,2]
[336057644,1724683832722,-154.39,0.00010959,2]
[336057645,1724683832731,-150.0,0.00010959,2]
[336057646,1724683832741,-2000.0,0.00010959,2]
[336057647,1724683832750,-250.0,0.00010959,2]
[336057648,1724683832760,-259.94,0.00010959,2]
[336057649,1724683832769,-333.31,0.00010959,2]
[336057650,1724683832780,-1500.0,0.00010959,2]
[336057651,1724683832789,-3685.14,0.00010975,2]
[336057652,1724683832799,-500.0,0.00010983,2]
[336057653,1724683832809,-500.0,0.00010983,2]
[336057654,1724683832819,-500.0,0.00010983,2]
[336057655,1724683832829,-541.77225534,0.00010983,2]
[336057656,1724683832838,-500.0,0.00010983,2]
[336057657,1724683832847,-500.0,0.00010983,2]
[336057658,1724683832857,-500.0,0.00010983,2]
[336057659,1724683832867,-500.0,0.00010983,2]
[336057660,1724683832877,-500.0,0.00010983,2]
[336057661,1724683832886,-500.0,0.00010983,2]
[336057662,1724683832895,-500.0,0.00010983,2]
[336057663,1724683832905,-500.0,0.00010983,2]
[336057664,1724683832914,-500.0,0.00010983,2]
[336057665,1724683832924,-481.73618259,0.00010983,2]
[336057666,1724683832934,-500.0,0.00010983,2]
[336057667,1724683832943,-500.0,0.00010983,2]
[336057668,1724683832953,-500.0,0.00010983,2]
[336057669,1724683832962,-500.0,0.00010983,2]
[336057670,1724683832972,-500.0,0.00010983,2]
[336057671,1724683832981,-500.0,0.00010983,2]
[336057672,1724683832991,-500.0,0.00010983,2]
[336057673,1724683833001,-500.0,0.00010983,2]
[336057674,1724683833010,-500.0,0.00010983,2]
[336057675,1724683833019,-500.0,0.00010983,2]
[336057676,1724683833028,-500.0,0.00010983,2]
[336057677,1724683833037,-500.0,0.00010983,2]
[336057678,1724683833047,-339.85359939,0.00010983,2]
[336057679,1724683833057,-500.0,0.00010983,2]
[336057680,1724683833066,-500.0,0.00010983,2]
[336057681,1724683833075,-500.0,0.00010983,2]
[336057682,1724683833085,-500.0,0.00010983,2]
[336057683,1724683833095,-500.0,0.00010983,2]
[336057684,1724683833104,-500.0,0.00010983,2]
[336057685,1724683833113,-531.98089998,0.00010983,2]
[336057686,1724683833123,-500.0,0.00010983,2]
[336057687,1724683833133,-613.98630189,0.00010983,2]
[336057688,1724683833147,-500.0,0.00010983,2]
[336057689,1724683833156,-406.61780367,0.00010983,2]
[336057690,1724683833166,-500.0,0.00010983,2]
[336057691,1724683833175,-500.0,0.00010983,2]
[336057692,1724683833186,-500.0,0.00010983,2]
[336057693,1724683833195,-500.0,0.00010983,2]
[336057694,1724683833205,-500.0,0.00010983,2]
[336057695,1724683833215,-525.86,0.00010983,2]
[336057696,1724683833227,-500.0,0.00010983,2]
[336057697,1724683833237,-500.0,0.00010983,2]
[336057698,1724683833247,-500.0,0.00010983,2]
[336057699,1724683833256,-500.0,0.00010983,2]
[336057700,1724683833266,-500.0,0.00010983,2]
[336057701,1724683833275,-162.12610338,0.00010983,2]
[336057702,1724683833285,-500.0,0.00010983,2]
[336057703,1724683833294,-1140.16,0.00010983,2]
[336057704,1724683833304,-596.87186536,0.00010983,2]
[336057705,1724683833314,-500.0,0.00010983,2]
[336057706,1724683833323,-500.0,0.00010983,2]
[336057707,1724683833333,-546.7512804,0.00010983,2]
[336057708,1724683833343,-500.0,0.00010983,2]
[336057709,1724683833352,-500.0,0.00010983,2]
[336057710,1724683833362,-500.0,0.00010983,2]
[336057711,1724683833373,-512.65132054,0.00010983,2]
[336057712,1724683833383,-151.04,0.00010983,2]
[336057713,1724683833393,-612.78,0.00010983,2]
[336057714,1724683833404,-500.0,0.00010983,2]
[336057715,1724683833414,-3127.61,0.00010983,2]
[336057716,1724683833423,-500.0,0.00010983,2]
[336057717,1724683833436,-500.0,0.00010983,2]
[336057718,1724683833446,-500.0,0.00010983,2]
[336057719,1724683833455,-500.0,0.00010983,2]
[336057720,1724683833466,-500.0,0.00010983,2]
[336057721,1724683833476,-500.0,0.00010983,2]
[336057722,1724683833486,-1145.286849,0.00010983,2]
[336057723,1724683833497,-594.51,0.00010983,2]
[336057724,1724683833507,-699.38,0.00010983,2]
[336057725,1724683833516,-500.0,0.00010983,2]
[336057726,1724683833526,-500.0,0.00010983,2]
[336057727,1724683833536,-843.168075,0.00010983,2]
[336057728,1724683833548,-500.0,0.00010983,2]
[336057729,1724683833558,-500.0,0.00010983,2]
[336057730,1724683833568,-16863.49735641,0.00010984,2]
[336057731,1724683833578,-500.0,0.00010984,2]
[336057732,1724683833587,-500.0,0.00010984,2]
[336057733,1724683833598,-544.07681988,0.00010984,2]
[336057734,1724683833607,-3206.17,0.00010984,2]
[336057735,1724683833616,-4125.66,0.00010984,2]
[336057736,1724683833626,-1212.4,0.00010984,2]
[336057737,1724683833635,-500.0,0.00010984,2]
[336057738,1724683833646,-500.0,0.00010984,2]
[336057739,1724683833656,-500.0,0.00010984,2]
[336057740,1724683833666,-500.0,0.00010984,2]
[336057741,1724683833675,-721.59,0.00010984,2]
[336057742,1724683833685,-615.64257188,0.00010984,2]
[336057743,1724683833695,-500.0,0.00010984,2]
[336057744,1724683833705,-500.0,0.00010984,2]
[336057745,1724683833715,-500.0,0.00010984,2]
[336057746,1724683833724,-500.0,0.00010984,2]
[336057747,1724683833734,-500.0,0.00010984,2]
[336057748,1724683833743,-548.03,0.00010984,2]
[336057749,1724683833753,-500.0,0.00010984,2]
[336057750,1724683833763,-500.0,0.00010984,2]
[336057751,1724683833773,-500.0,0.00010984,2]
[336057752,1724683833783,-500.0,0.00010984,2]
[336057753,1724683833793,-500.0,0.00010984,2]
[336057754,1724683833803,-700.1,0.00010984,2]
[336057755,1724683833812,-500.0,0.00010984,2]
[336057756,1724683833822,-500.0,0.00010984,2]
[336057757,1724683833831,-396.14516287,0.00010984,2]
[336057758,1724683833842,-500.0,0.00010984,2]
[336057759,1724683833851,-526.78,0.00010984,2]
[336057760,1724683833861,-500.0,0.00010984,2]
[336057761,1724683833870,-500.0,0.00010984,2]
[336057762,1724683833880,-500.0,0.00010984,2]
[336057763,1724683833890,-899.81,0.00010984,2]
[336057764,1724683833900,-500.0,0.00010984,2]
[336057765,1724683833909,-1650.34,0.00010984,2]
[336057766,1724683833919,-500.0,0.00010984,2]
[336057767,1724683833928,-500.0,0.00010984,2]
[336057768,1724683833937,-5262.18,0.00010984,2]
[336057769,1724683833948,-500.0,0.00010984,2]
[336057770,1724683833957,-1160.43,0.00010984,2]
[336057771,1724683833967,-500.0,0.00010984,2]
[336057772,1724683833976,-719.85,0.00010984,2]
[336057773,1724683833986,-602.2,0.00010984,2]
[336057774,1724683833995,-500.0,0.00010984,2]
[336057775,1724683834005,-500.0,0.00010984,2]
[336057776,1724683834014,-500.0,0.00010984,2]
[336057777,1724683834024,-500.0,0.00010984,2]
[336057778,1724683834034,-500.0,0.00010984,2]
[336057779,1724683834044,-1827.64,0.00010984,2]
[336057780,1724683834054,-500.0,0.00010984,2]
[336057781,1724683834065,-500.0,0.00010984,2]
[336057782,1724683834082,-500.0,0.00010984,2]
[336057783,1724683834092,-500.0,0.00010984,2]
[336057784,1724683834101,-1551.61,0.00010984,2]
[336057785,1724683834110,-2626.61,0.00010984,2]
[336057786,1724683834124,-500.0,0.00010984,2]
[336057787,1724683834134,-1179.22,0.00010984,2]
[336057788,1724683834146,-500.0,0.00010984,2]
[336057789,1724683834158,-3346.28,0.00010984,2]
[336057790,1724683834168,-1906.28,0.00010984,2]
[336057791,1724683834177,-500.0,0.00010984,2]
[336057792,1724683834187,-1326.14,0.00010984,2]
[336057793,1724683834197,-500.0,0.00010984,2]
[336057794,1724683834207,-341.34,0.00010984,2]
[336057795,1724683834217,-500.0,0.00010984,2]
[336057796,1724683834228,-500.0,0.00010984,2]
[336057797,1724683834238,-1606.94,0.00010984,2]
[336057798,1724683834248,-787.75,0.00010984,2]
[336057799,1724683834259,-1591.45,0.00010984,2]
[336057800,1724683834269,-1323.33,0.00010984,2]
[336057801,1724683834279,-2569.6,0.00010984,2]
[336057802,1724683834289,-1423.76,0.00010984,2]
[336057803,1724683834299,-539.66,0.00010984,2]
[336057804,1724683834308,-1474.58,0.00010984,2]
[336057805,1724683834319,-4074.97,0.00010984,2]
[336057806,1724683834332,-2303.83,0.00010984,2]
[336057807,1724683834341,-500.0,0.00010984,2]
[336057808,1724683834351,-617.43076818,0.00010984,2]
[336057809,1724683834362,-500.0,0.00010984,2]
[336057810,1724683834371,-500.0,0.00010984,2]
[336057811,1724683834380,-1453.5,0.00010984,2]
[336057812,1724683834390,-639.4,0.00010984,2]
[336057813,1724683834399,-500.0,0.00010984,2]
[336057814,1724683834409,-500.0,0.00010984,2]
[336057815,1724683834419,-500.0,0.00010984,2]
[336057816,1724683834428,-500.0,0.00010984,2]
[336057817,1724683834438,-500.0,0.00010984,2]
[336057818,1724683834447,-515.63819082,0.00010984,2]
[336057819,1724683834457,-500.0,0.00010984,2]
[336057820,1724683834466,-500.0,0.00010984,2]
[336057821,1724683834476,-500.0,0.00010984,2]
[336057822,1724683834485,-862.01,0.00010984,2]
[336057823,1724683834495,-500.0,0.00010984,2]
[336057824,1724683834504,-500.0,0.00010984,2]
[336057825,1724683834514,-500.0,0.00010984,2]
[336057826,1724683834523,-500.0,0.00010984,2]
[336057827,1724683834533,-500.0,0.00010984,2]
[336057828,1724683834542,-500.0,0.00010984,2]
[336057829,1724683834551,-1368.35,0.00010984,2]
[336057830,1724683834561,-500.0,0.00010984,2]
[336057831,1724683834570,-926.63,0.00010984,2]
[336057832,1724683834580,-500.0,0.00010984,2]
[336057833,1724683834590,-500.0,0.00010984,2]
[336057834,1724683834600,-500.0,0.00010984,2]
[336057835,1724683834609,-500.0,0.00010984,2]
[336057836,1724683834618,-500.0,0.00010984,2]
[336057837,1724683834627,-500.0,0.00010984,2]
[336057838,1724683834636,-500.0,0.00010984,2]
[336057839,1724683834646,-500.0,0.00010984,2]
[336057840,1724683834655,-500.0,0.00010984,2]
[336057841,1724683834665,-500.0,0.00010984,2]
[336057842,1724683834675,-500.0,0.00010984,2]
[336057843,1724683834685,-827.7,0.00010984,2]
[336057844,1724683834695,-500.0,0.00010984,2]
[336057845,1724683834705,-500.0,0.00010984,2]
[336057846,1724683834714,-500.0,0.00010984,2]
[336057847,1724683834724,-500.0,0.00010984,2]
[336057848,1724683834734,-500.0,0.00010984,2]
[336057849,1724683834744,-500.0,0.00010984,2]
[336057850,1724683834754,-500.0,0.00010984,2]
[336057851,1724683834763,-820.8,0.00010984,2]
[336057852,1724683834772,-500.0,0.00010984,2]
[336057853,1724683834782,-500.0,0.00010984,2]
[336057854,1724683834791,-500.0,0.00010984,2]
[336057855,1724683834801,-500.0,0.00010984,2]
[336057856,1724683834810,-305.19914608,0.00010984,2]
[336057857,1724683834820,-884.66,0.00010984,2]
[336057858,1724683834829,-884.66,0.00010984,2]
[336057859,1724683834839,-500.0,0.00010984,2]
[336057860,1724683834848,-500.0,0.00010984,2]
[336057861,1724683834858,-500.0,0.00010984,2]
[336057862,1724683834868,-500.0,0.00010984,2]
[336057863,1724683834878,-500.0,0.00010984,2]
[336057864,1724683834887,-500.0,0.00010984,2]
[336057865,1724683834898,-500.0,0.00010984,2]
[336057866,1724683834907,-500.0,0.00010984,2]
[336057867,1724683834917,-500.0,0.00010984,2]
[336057868,1724683834926,-615.51,0.00010984,2]
[336057869,1724683834936,-500.0,0.00010984,2]
[336057870,1724683834946,-500.0,0.00010984,2]
[336057871,1724683834955,-500.0,0.00010984,2]
[336057872,1724683834965,-500.0,0.00010984,2]
[336057873,1724683834974,-1140.16,0.00010984,2]
[336057874,1724683834984,-1140.16,0.00010984,2]
[336057875,1724683834993,-500.0,0.00010984,2]
[336057876,1724683835003,-500.0,0.00010984,2]
[336057877,1724683835013,-500.0,0.00010984,2]
[336057878,1724683835022,-500.0,0.00010984,2]
[336057879,1724683835031,-500.0,0.00010984,2]
[336057880,1724683835041,-500.0,0.00010984,2]
[336057881,1724683835050,-500.0,0.00010984,2]
[336057882,1724683835060,-1046.18,0.00010984,2]
[336057883,1724683835069,-500.0,0.00010984,2]
[336057884,1724683835079,-500.0,0.00010984,2]
[336057885,1724683835088,-500.0,0.00010984,2]
[336057886,1724683835098,-500.0,0.00010984,2]
[336057887,1724683835107,-500.0,0.00010984,2]
[336057888,1724683835117,-500.0,0.00010984,2]
[336057889,1724683835127,-3127.61,0.00010984,2]
[336057890,1724683835136,-3127.61,0.00010984,2]
[336057891,1724683835149,-1266.56,0.00010984,2]
[336057892,1724683835158,-500.0,0.00010984,2]
[336057893,1724683835168,-500.0,0.00010984,2]
[336057894,1724683835177,-500.0,0.00010984,2]
[336057895,1724683835186,-1102.44,0.00010984,2]
[336057896,1724683835196,-500.0,0.00010984,2]
[336057897,1724683835205,-500.0,0.00010984,2]
[336057898,1724683835214,-500.0,0.00010984,2]
[336057899,1724683835225,-500.0,0.00010984,2]
[336057900,1724683835235,-512.76,0.00010984,2]
[336057901,1724683835244,-546.13,0.00010984,2]
[336057902,1724683835253,-500.0,0.00010984,2]
[336057903,1724683835262,-500.0,0.00010984,2]
[336057904,1724683835272,-514.14,0.00010984,2]
[336057905,1724683835282,-592.64,0.00010984,2]
[336057906,1724683835291,-1496.41,0.00010984,2]
[336057907,1724683835301,-521.04,0.00010984,2]
[336057908,1724683835310,-500.0,0.00010984,2]
[336057909,1724683835320,-594.51,0.00010984,2]
[336057910,1724683835331,-594.51,0.00010984,2]
[336057911,1724683835340,-699.38,0.00010984,2]
[336057912,1724683835349,-699.38,0.00010984,2]
[336057913,1724683835359,-500.0,0.00010984,2]
[336057914,1724683835368,-500.0,0.00010984,2]
[336057915,1724683835379,-500.0,0.00010984,2]
[336057916,1724683835388,-500.0,0.00010984,2]
[336057917,1724683835397,-395.25,0.00010984,2]
[336057918,1724683835406,-500.0,0.00010984,2]
[336057919,1724683835416,-500.0,0.00010984,2]
[336057920,1724683835425,-500.0,0.00010984,2]
[336057921,1724683835435,-2202.0,0.00010984,2]
[336057922,1724683835445,-500.0,0.00010985,2]
[336057923,1724683835454,-501.10950662,0.00010985,2]
[336057924,1724683835463,-500.0,0.00010985,2]
[336057925,1724683835474,-500.0,0.00010985,2]
[336057926,1724683835484,-500.0,0.00010985,2]
[336057927,1724683835493,-500.0,0.00010985,2]
[336057928,1724683835504,-500.0,0.00010985,2]
[336057929,1724683835514,-500.0,0.00010985,2]
[336057930,1724683835523,-500.0,0.00010985,2]
[336057931,1724683835533,-500.0,0.00010985,2]
[336057932,1724683835542,-500.0,0.00010985,2]
[336057933,1724683835551,-500.0,0.00010985,2]
[336057934,1724683835560,-500.0,0.00010985,2]
[336057935,1724683835570,-541.82,0.00010985,2]
[336057936,1724683835579,-541.82,0.00010985,2]
[336057937,1724683835589,-305.08,0.00010985,2]
[336057938,1724683835598,-289.05147628,0.00010985,2]
[336057939,1724683835613,-500.0,0.00010985,2]
[336057940,1724683835623,-500.0,0.00010985,2]
[336057941,1724683835632,-500.0,0.00010985,2]
[336057942,1724683835641,-500.0,0.00010985,2]
[336057943,1724683835651,-500.0,0.00010985,2]
[336057944,1724683835660,-500.0,0.00010985,2]
[336057945,1724683835670,-500.0,0.00010985,2]
[336057946,1724683835679,-500.0,0.00010985,2]
[336057947,1724683835689,-500.0,0.00010985,2]
[336057948,1724683835698,-500.0,0.00010985,2]
[336057949,1724683835707,-613.46,0.00010985,2]
[336057950,1724683835717,-500.0,0.00010985,2]